fUST/lending_fUST_20250726
["ID","MTS","AMOUNT","RATE_DAILY","PERIOD"]
[375002259,1753498239591,-460.0,0.00019178,2]
[375002261,1753498239600,-460.0,0.00019178,2]
[375002263,1753498239611,-469.59370814,0.00019178,2]
[375002265,1753498239621,-462.57606515,0.00019178,2]
[375002267,1753498239630,-282.48693469,0.00019178,2]
[375002269,1753498239639,-466.47244149,0.00019178,2]
[375002271,1753498239649,-465.17308828,0.00019178,2]
[375002273,1753498239658,-460.0,0.00019178,2]
[375002275,1753498239667,-151.0,0.00019178,2]
[375002277,1753498239677,-460.0,0.00019178,2]
[375002280,1753498239687,-460.0,0.00019178,2]
[375002283,1753498239697,-460.0,0.00019178,2]
[375002286,1753498239706,-460.0,0.00019178,2]
[375002289,1753498239716,-463.34284198,0.00019178,2]
[375002291,1753498239726,-460.0,0.00019178,2]
[375002294,1753498239735,-460.0,0.00019178,2]
[375002297,1753498239745,-460.0,0.00019178,2]
[375002300,1753498239755,-465.964678,0.00019178,2]
[375002303,1753498239765,-460.0,0.00019178,2]
[375002306,1753498239775,-462.98833529,0.00019178,2]
[375002309,1753498239784,-460.0,0.00019178,2]
[375002311,1753498239794,-460.0,0.00019178,2]
[375002314,1753498239804,-462.52913636,0.00019178,2]
[375002316,1753498239813,-460.0,0.00019178,2]
[375002319,1753498239823,-151.0,0.00019178,2]
[375002322,1753498239834,-460.0,0.00019178,2]
[375002324,1753498239843,-335.54966154,0.00019178,2]
[375002326,1753498239853,-460.0,0.00019178,2]
[375002328,1753498239862,-465.00821704,0.00019178,2]
[375002330,1753498239871,-460.0,0.00019178,2]
[375002333,1753498239881,-460.0,0.00019178,2]
[375002336,1753498239890,-460.0,0.00019178,2]
[375002339,1753498239899,-462.04788041,0.00019178,2]
[375002342,1753498239909,-460.0,0.00019178,2]
[375002345,1753498239919,-460.0,0.00019178,2]
[375002348,1753498239929,-460.0,0.00019178,2]
[375002351,1753498239938,-247.10999687,0.00019178,2]
[375002355,1753498239948,-460.0,0.00019178,2]
[375002357,1753498239957,-460.0,0.00019178,2]
[375002359,1753498239966,-482.58364424,0.00019178,2]
[375002362,1753498239976,-463.50039049,0.00019178,2]
[375002364,1753498239986,-151.0,0.00019178,2]
[375002366,1753498239995,-460.0,0.00019178,2]
[375002368,1753498240004,-460.0,0.00019178,2]
[375002370,1753498240014,-460.0,0.00019178,2]
[375002372,1753498240023,-497.13968117,0.00019178,2]
[375002374,1753498240033,-465.69256559,0.00019178,2]
[375002376,1753498240042,-464.88709639,0.00019178,2]
[375002378,1753498240051,-460.0,0.00019178,2]
[375002380,1753498240060,-460.0,0.00019178,2]
[375002382,1753498240069,-464.53325346,0.00019178,2]
[375002384,1753498240079,-460.0,0.00019178,2]
[375002386,1753498240088,-151.0,0.00019178,2]
[375002388,1753498240097,-465.80960585,0.00019178,2]
[375002390,1753498240106,-460.0,0.00019178,2]
[375002392,1753498240116,-460.0,0.00019178,2]
[375002394,1753498240127,-465.20671525,0.00019178,2]
[375002396,1753498240136,-463.1904532,0.00019178,2]
[375002398,1753498240145,-460.0,0.00019178,2]
[375002400,1753498240156,-460.0,0.00019178,2]
[375002402,1753498240165,-460.0,0.00019178,2]
[375002404,1753498240174,-200.13396422,0.00019178,2]
[375002406,1753498240183,-460.0,0.00019178,2]
[375002408,1753498240193,-460.0,0.00019178,2]
[375002410,1753498240202,-460.0,0.00019178,2]
[375002412,1753498240212,-460.0,0.00019178,2]
[375002414,1753498240221,-463.47591192,0.00019178,2]
[375002416,1753498240230,-460.0,0.00019178,2]
[375002418,1753498240239,-465.1103331,0.00019178,2]
[375002420,1753498240248,-433.62213683,0.00019178,2]
[375002422,1753498240257,-460.0,0.00019178,2]
[375002424,1753498240267,-460.0,0.00019178,2]
[375002426,1753498240276,-151.0,0.00019178,2]
[375002428,1753498240286,-460.0,0.00019178,2]
[375002430,1753498240295,-291.40050975,0.00019178,2]
[375002432,1753498240306,-460.0,0.00019178,2]
[375002434,1753498240316,-460.0,0.00019178,2]
[375002436,1753498240326,-460.0,0.00019178,2]
[375002439,1753498240344,-1178.73,0.00019178,2]
[375002441,1753498240354,-460.0,0.00019178,2]
[375002443,1753498240363,-334.29526022,0.00019178,2]
[375002445,1753498240372,-565.71,0.00019178,2]
[375002447,1753498240381,-464.00496295,0.00019178,2]
[375002449,1753498240391,-460.0,0.00019178,2]
[375002451,1753498240400,-460.0,0.00019178,2]
[375002453,1753498240409,-461.81766778,0.00019178,2]
[375002455,1753498240418,-460.0,0.00019178,2]
[375002457,1753498240427,-552.35977268,0.00019178,2]
[375002459,1753498240437,-2820.58,0.00019178,2]
[375002461,1753498240446,-464.37337599,0.00019178,2]
[375002463,1753498240455,-460.0,0.00019178,2]
[375002465,1753498240465,-2259.96,0.00019178,2]
[375002467,1753498240474,-470.4805408,0.00019178,2]
[375002469,1753498240483,-460.0,0.00019178,2]
[375002471,1753498240493,-460.0,0.00019178,2]
[375002473,1753498240502,-465.43213783,0.00019178,2]
[375002475,1753498240512,-1229.32,0.00019178,2]
[375002477,1753498240522,-460.0,0.00019178,2]
[375002479,1753498240532,-460.0,0.00019178,2]
[375002481,1753498240541,-460.0,0.00019178,2]
[375002483,1753498240552,-460.0,0.00019178,2]
[375002485,1753498240563,-460.0,0.00019178,2]
[375002487,1753498240572,-460.0,0.00019178,2]
[375002489,1753498240581,-460.0,0.00019178,2]
[375002491,1753498240590,-699.22,0.00019178,2]
[375002493,1753498240599,-467.59913562,0.00019178,2]
[375002494,1753498240608,-460.0,0.00019178,2]
[375002496,1753498240617,-460.0,0.00019178,2]
[375002499,1753498240630,-471.61665897,0.00019178,2]
[375002501,1753498240640,-460.0,0.00019178,2]
[375002503,1753498240650,-618.62,0.00019178,2]
[375002505,1753498240659,-460.0,0.00019178,2]
[375002507,1753498240668,-460.0,0.00019178,2]
[375002509,1753498240678,-461.33378482,0.00019178,2]
[375002511,1753498240687,-460.0,0.00019178,2]
[375002513,1753498240696,-1475.59,0.00019178,2]
[375002515,1753498240706,-460.0,0.00019178,2]
[375002517,1753498240715,-299.99209885,0.00019178,2]
[375002519,1753498240724,-460.0,0.00019178,2]
[375002521,1753498240734,-238.733205,0.00019178,2]
[375002523,1753498240743,-1665.33,0.00019178,2]
[375002525,1753498240752,-460.0,0.00019178,2]
[375002527,1753498240762,-460.0,0.00019178,2]
[375002529,1753498240771,-460.0,0.00019178,2]
[375002531,1753498240780,-586.03682361,0.00019178,2]
[375002533,1753498240790,-460.0,0.00019178,2]
[375002535,1753498240800,-460.0,0.00019178,2]
[375002537,1753498240809,-500.0,0.00019178,2]
[375002539,1753498240819,-500.0,0.00019178,2]
[375002541,1753498240830,-460.0,0.00019178,2]
[375002543,1753498240840,-1016.28,0.00019178,2]
[375002545,1753498240849,-460.0,0.00019178,2]
[375002547,1753498240858,-460.0,0.00019178,2]
[375002549,1753498240868,-530.2,0.00019178,2]
[375002551,1753498240877,-467.14041247,0.00019178,2]
[375002553,1753498240887,-460.0,0.00019178,2]
[375002555,1753498240896,-460.0,0.00019178,2]
[375002557,1753498240905,-4433.73,0.00019178,2]
[375002559,1753498240914,-460.0,0.00019178,2]
[375002561,1753498240924,-460.0,0.00019178,2]
[375002563,1753498240933,-460.0,0.00019178,2]
[375002565,1753498240943,-469.28422977,0.00019178,2]
[375002567,1753498240952,-460.0,0.00019178,2]
[375002569,1753498240961,-509.73672316,0.00019178,2]
[375002571,1753498240970,-460.0,0.00019178,2]
[375002573,1753498240978,-465.19868725,0.00019178,2]
[375002575,1753498240988,-460.0,0.00019178,2]
[375002577,1753498240997,-1794.08,0.00019178,2]
[375002579,1753498241006,-463.41811104,0.00019178,2]
[375002581,1753498241015,-460.0,0.00019178,2]
[375002583,1753498241024,-465.29496043,0.00019178,2]
[375002584,1753498241033,-460.0,0.00019178,2]
[375002587,1753498241043,-460.0,0.00019178,2]
[375002589,1753498241054,-460.0,0.00019178,2]
[375002591,1753498241063,-1702.62,0.00019178,2]
[375002593,1753498241072,-460.0,0.00019178,2]
[375002595,1753498241082,-460.0,0.00019178,2]
[375002597,1753498241091,-666.46,0.00019178,2]
[375002599,1753498241100,-460.0,0.00019178,2]
[375002601,1753498241110,-465.66178147,0.00019178,2]
[375002603,1753498241119,-460.0,0.00019178,2]
[375002605,1753498241129,-464.86400042,0.00019178,2]
[375002607,1753498241138,-460.0,0.00019178,2]
[375002609,1753498241147,-460.0,0.00019178,2]
[375002611,1753498241156,-460.0,0.00019178,2]
[375002613,1753498241165,-460.0,0.00019178,2]
[375002615,1753498241175,-460.0,0.00019178,2]
[375002617,1753498241183,-460.0,0.00019178,2]
[375002619,1753498241193,-460.0,0.00019178,2]
[375002620,1753498241202,-640.07,0.00019178,2]
[375002622,1753498241211,-1381.56,0.00019178,2]
[375002624,1753498241220,-460.0,0.00019178,2]
[375002626,1753498241229,-460.0,0.00019178,2]
[375002628,1753498241239,-460.0,0.00019178,2]
[375002630,1753498241248,-203.20015898,0.00019178,2]
[375002632,1753498241257,-460.85877015,0.00019178,2]
[375002634,1753498241266,-460.0,0.00019178,2]
[375002636,1753498241275,-460.0,0.00019178,2]
[375002638,1753498241284,-460.0,0.00019178,2]
[375002640,1753498241293,-460.0,0.00019178,2]
[375002642,1753498241304,-460.0,0.00019178,2]
[375002644,1753498241313,-460.0,0.00019178,2]
[375002646,1753498241322,-1129.5,0.00019178,2]
[375002648,1753498241331,-460.0,0.00019178,2]
[375002650,1753498241341,-460.0,0.00019178,2]
[375002652,1753498241350,-467.36322014,0.00019178,2]
[375002654,1753498241359,-460.0,0.00019178,2]
[375002656,1753498241368,-466.7341785,0.00019178,2]
[375002658,1753498241378,-188.89501156,0.00019178,2]
[375002660,1753498241387,-460.0,0.00019178,2]
[375002662,1753498241396,-539.18794,0.00019178,2]
[375002664,1753498241405,-460.0,0.00019178,2]
[375002666,1753498241414,-460.0,0.00019178,2]
[375002668,1753498241423,-1282.11,0.00019178,2]
[375002670,1753498241432,-460.0,0.00019178,2]
[375002672,1753498241442,-460.0,0.00019178,2]
[375002674,1753498241451,-539.18794,0.00019178,2]
[375002676,1753498241460,-1104.23,0.00019178,2]
[375002678,1753498241469,-460.0,0.00019178,2]
[375002680,1753498241478,-460.0,0.00019178,2]
[375002682,1753498241487,-974.25,0.00019178,2]
[375002684,1753498241497,-273.91261486,0.00019178,2]
[375002686,1753498241506,-460.0,0.00019178,2]
[375002688,1753498241515,-460.0,0.00019178,2]
[375002690,1753498241524,-460.0,0.00019178,2]
[375002692,1753498241537,-224.37187158,0.00019178,2]
[375002694,1753498241546,-460.85897276,0.00019178,2]
[375002696,1753498241556,-460.0,0.00019178,2]
[375002698,1753498241565,-460.0,0.00019178,2]
[375002700,1753498241576,-461.83743711,0.00019178,2]
[375002702,1753498241585,-460.0,0.00019178,2]
[375002704,1753498241594,-461.87236474,0.00019178,2]
[375002706,1753498241603,-460.0,0.00019178,2]
[375002708,1753498241615,-500.0,0.00019178,2]
[375002710,1753498241625,-151.0,0.000192,2]
[375002712,1753498241634,-220.635296,0.00019308,2]
[375002714,1753498241643,-220.635294,0.00019308,2]
[375002715,1753498241653,-297.929488,0.00019308,2]
[375002717,1753498241663,-460.0,0.00019452,2]
[375002720,1753498241672,-460.0,0.00019452,2]
[375002722,1753498241682,-460.0,0.00019452,2]
[375002724,1753498241691,-460.0,0.00019452,2]
[375002726,1753498241700,-290.73171195,0.00019452,2]
[375002728,1753498241709,-460.0,0.00019452,2]
[375002730,1753498241718,-471.00285628,0.00019452,2]
[375002732,1753498241727,-470.56782926,0.00019452,2]
[375002734,1753498241736,-460.0,0.00019452,2]
[375002736,1753498241745,-460.0,0.00019452,2]
[375002738,1753498241756,-460.0,0.00019452,2]
[375002740,1753498241765,-460.0,0.00019452,2]
[375002742,1753498241774,-460.0,0.00019452,2]
[375002744,1753498241783,-460.0,0.00019452,2]
[375002746,1753498241792,-460.0,0.00019452,2]
[375002758,1753498241882,-460.0,0.00019452,2]
[375002760,1753498241903,-488.23349319,0.00019452,2]
[375002762,1753498241914,-460.0,0.00019452,2]
[375002764,1753498241924,-460.0,0.00019452,2]
[375002766,1753498241934,-460.0,0.00019452,2]
[375002768,1753498241943,-460.0,0.00019452,2]
[375002770,1753498241953,-333.47349477,0.00019452,2]
[375002772,1753498241963,-543.22268405,0.00019452,2]
[375002775,1753498241972,-533.2,0.00019452,2]
[375002777,1753498241981,-460.0,0.00019452,2]
[375002779,1753498241991,-460.0,0.00019452,2]
[375002780,1753498242000,-460.0,0.00019452,2]
[375002782,1753498242009,-460.0,0.00019452,2]
[375002784,1753498242019,-465.9747572,0.00019452,2]
[375002786,1753498242029,-467.82913148,0.00019452,2]
[375002789,1753498242039,-460.0,0.00019452,2]
[375002791,1753498242050,-460.0,0.00019452,2]
[375002793,1753498242063,-151.0,0.00019452,2]
[375002795,1753498242073,-460.0,0.00019452,2]
[375002797,1753498242083,-469.79595593,0.00019452,2]
[375002799,1753498242092,-460.0,0.00019452,2]
[375002801,1753498242101,-460.0,0.00019452,2]
[375002803,1753498242110,-460.0,0.00019452,2]
[375002805,1753498242120,-460.0,0.00019452,2]
[375002807,1753498242129,-460.0,0.00019452,2]
[375002809,1753498242139,-460.0,0.00019452,2]
[375002811,1753498242148,-341.97016843,0.00019452,2]
[375002813,1753498242157,-460.0,0.00019452,2]
[375002815,1753498242167,-460.0,0.00019452,2]
[375002817,1753498242176,-460.0,0.00019452,2]
[375002819,1753498242186,-460.0,0.00019452,2]
[375002821,1753498242195,-460.0,0.00019452,2]
[375002823,1753498242205,-460.0,0.00019452,2]
[375002825,1753498242215,-460.0,0.00019452,2]
[375002827,1753498242225,-460.0,0.00019452,2]
[375002829,1753498242234,-460.0,0.00019452,2]
[375002831,1753498242243,-460.0,0.00019452,2]
[375002833,1753498242253,-153.041534,0.00019452,2]
[375002835,1753498242263,-460.0,0.00019452,2]
[375002837,1753498242273,-151.0,0.00019452,2]
[375002839,1753498242282,-460.0,0.00019452,2]
[375002841,1753498242292,-460.0,0.00019452,2]
[375002843,1753498242302,-460.0,0.00019452,2]
[375002845,1753498242312,-460.0,0.00019452,2]
[375002847,1753498242322,-460.0,0.00019452,2]
[375002849,1753498242332,-460.0,0.00019452,2]
[375002851,1753498242341,-460.0,0.00019452,2]
[375002853,1753498242351,-460.0,0.00019452,2]
[375002855,1753498242361,-460.0,0.00019452,2]
[375002859,1753498242382,-460.0,0.00019452,2]
[375002861,1753498242393,-460.0,0.00019452,2]
[375002863,1753498242404,-460.0,0.00019452,2]
[375002865,1753498242414,-151.0,0.00019452,2]
[375002867,1753498242424,-460.0,0.00019452,2]
[375002869,1753498242434,-456.65325469,0.00019452,2]
[375002871,1753498242444,-460.0,0.00019452,2]
[375002873,1753498242454,-460.0,0.00019452,2]
[375002875,1753498242464,-151.0,0.00019452,2]
[375002877,1753498242474,-151.0,0.00019452,2]
[375002879,1753498242483,-468.18460087,0.00019452,2]
[375002881,1753498242492,-460.0,0.00019452,2]
[375002883,1753498242502,-151.0,0.00019452,2]
[375002885,1753498242513,-460.0,0.00019452,2]
[375002887,1753498242522,-460.0,0.00019452,2]
[375002889,1753498242536,-223.19556,0.00019452,2]
[375002891,1753498242546,-1178.73,0.00019452,2]
[375002893,1753498242556,-460.0,0.00019452,2]
[375002895,1753498242566,-565.71,0.00019452,2]
[375002897,1753498242576,-210.41355271,0.00019452,2]
[375002899,1753498242586,-460.0,0.00019452,2]
[375002901,1753498242596,-460.0,0.00019452,2]
[375002903,1753498242607,-2820.58,0.00019452,2]
[375002905,1753498242617,-2259.96,0.00019452,2]
[375002907,1753498242626,-460.0,0.00019452,2]
[375002909,1753498242636,-428.18185539,0.00019452,2]
[375002911,1753498242646,-1229.32,0.00019452,2]
[375002914,1753498242656,-460.0,0.00019452,2]
[375002916,1753498242666,-460.0,0.00019452,2]
[375002918,1753498242675,-460.0,0.00019452,2]
[375002919,1753498242686,-460.0,0.00019452,2]
[375002922,1753498242696,-460.0,0.00019452,2]
[375002924,1753498242706,-460.0,0.00019452,2]
[375002926,1753498242716,-699.22,0.00019452,2]
[375002928,1753498242725,-460.0,0.00019452,2]
[375002931,1753498242736,-460.0,0.00019452,2]
[375002933,1753498242746,-618.62,0.00019452,2]
[375002935,1753498242756,-460.0,0.00019452,2]
[375002937,1753498242768,-460.0,0.00019452,2]
[375002939,1753498242777,-460.0,0.00019452,2]
[375002941,1753498242787,-1475.59,0.00019452,2]
[375002943,1753498242797,-460.0,0.00019452,2]
[375002945,1753498242807,-575.98154319,0.00019452,2]
[375002947,1753498242818,-1665.33,0.00019452,2]
[375002949,1753498242828,-460.0,0.00019452,2]
[375002951,1753498242837,-460.0,0.00019452,2]
[375002953,1753498242848,-460.0,0.00019452,2]
[375002955,1753498242859,-465.44287873,0.00019452,2]
[375002957,1753498242869,-467.32388735,0.00019452,2]
[375002959,1753498242878,-1016.28,0.00019452,2]
[375002961,1753498242888,-460.0,0.00019452,2]
[375002963,1753498242897,-460.0,0.00019452,2]
[375002965,1753498242907,-530.2,0.00019452,2]
[375002967,1753498242916,-460.0,0.00019452,2]
[375002969,1753498242926,-4433.73,0.00019452,2]
[375002971,1753498242935,-464.16119415,0.00019452,2]
[375002973,1753498242945,-460.0,0.00019452,2]
[375002975,1753498242954,-460.0,0.00019452,2]
[375002977,1753498242964,-460.0,0.00019452,2]
[375002979,1753498242974,-460.0,0.00019452,2]
[375002981,1753498242984,-1794.08,0.00019452,2]
[375002983,1753498242993,-460.0,0.00019452,2]
[375002985,1753498243003,-460.0,0.00019452,2]
[375002987,1753498243012,-460.0,0.00019452,2]
[375002989,1753498243023,-460.0,0.00019452,2]
[375002991,1753498243032,-1702.62,0.00019452,2]
[375002993,1753498243042,-460.0,0.00019452,2]
[375002995,1753498243051,-666.46,0.00019452,2]
[375002997,1753498243061,-460.0,0.00019452,2]
[375002999,1753498243072,-467.23447282,0.00019452,2]
[375003001,1753498243081,-460.0,0.00019452,2]
[375003003,1753498243091,-460.0,0.00019452,2]
[375003005,1753498243101,-245.21327582,0.00019452,2]
[375003007,1753498243111,-460.0,0.00019452,2]
[375003008,1753498243120,-460.0,0.00019452,2]
[375003009,1753498243130,-640.07,0.00019452,2]
[375003010,1753498243139,-1381.56,0.00019452,2]
[375003011,1753498243149,-460.0,0.00019452,2]
[375003012,1753498243159,-460.0,0.00019452,2]
[375003013,1753498243169,-467.91126572,0.00019452,2]
[375003014,1753498243178,-460.0,0.00019452,2]
[375003015,1753498243188,-460.0,0.00019452,2]
[375003016,1753498243198,-173.82862282,0.00019452,2]
[375003017,1753498243207,-174.590949,0.00019452,2]
[375003018,1753498243216,-460.0,0.00019452,2]
[375003019,1753498243226,-1129.5,0.00019452,2]
[375003020,1753498243235,-174.590949,0.00019452,2]
[375003021,1753498243245,-462.99906882,0.00019452,2]
[375003022,1753498243255,-460.0,0.00019452,2]
[375003023,1753498243264,-460.0,0.00019452,2]
[375003024,1753498243273,-463.04863492,0.00019452,2]
[375003025,1753498243282,-539.18794,0.00019452,2]
[375003026,1753498243292,-337.42253607,0.00019452,2]
[375003027,1753498243301,-465.21906098,0.00019452,2]
[375003028,1753498243311,-1282.11,0.00019452,2]
[375003029,1753498243321,-460.0,0.00019452,2]
[375003030,1753498243330,-460.0,0.00019452,2]
[375003031,1753498243340,-539.18794,0.00019452,2]
[375003032,1753498243350,-1104.23,0.00019452,2]
[375003033,1753498243359,-460.0,0.00019452,2]
[375003034,1753498243369,-460.0,0.00019452,2]
[375003035,1753498243378,-974.25,0.00019452,2]
[375003038,1753498243388,-460.0,0.00019452,2]
[375003041,1753498243399,-460.0,0.00019452,2]
[375003044,1753498243408,-151.0,0.00019452,2]
[375003047,1753498243419,-460.0,0.00019452,2]
[375003049,1753498243428,-460.0,0.00019452,2]
[375003051,1753498243438,-460.0,0.00019452,2]
[375003053,1753498243448,-500.0,0.00019452,2]
[375003055,1753498243457,-500.0,0.00019473,2]
[375003057,1753498243468,-500.0,0.00019473,2]
[375003059,1753498243479,-501.85948839,0.00019473,2]
[375003061,1753498243488,-501.15255493,0.00019473,2]
[375003063,1753498243498,-502.42350243,0.00019721,2]
[375003065,1753498243508,-510.5889094,0.00019721,2]
[375003067,1753498243517,-1000.0,0.00019721,2]
[375003069,1753498243527,-1000.0,0.00019721,2]
[375003072,1753498243542,-508.46080504,0.00019721,2]
[375003073,1753498243551,-1000.0,0.00019721,2]
[375003075,1753498243563,-1004.89324726,0.00019721,2]
[375003077,1753498243573,-460.0,0.00019726,2]
[375003079,1753498243583,-460.0,0.00019726,2]
[375003081,1753498243592,-460.0,0.00019726,2]
[375003083,1753498243602,-460.0,0.00019726,2]
[375003085,1753498243611,-460.0,0.00019726,2]
[375003087,1753498243621,-151.0,0.00019726,2]
[375003089,1753498243630,-460.0,0.00019726,2]
[375003091,1753498243640,-151.0,0.00019726,2]
[375003093,1753498243649,-182.971494,0.00019726,2]
[375003095,1753498243659,-182.971494,0.00019726,2]
[375003097,1753498243669,-460.0,0.00019726,2]
[375003099,1753498243679,-460.0,0.00019726,2]
[375003101,1753498243689,-476.99282003,0.00019726,2]
[375003103,1753498243699,-460.0,0.00019726,2]
[375003105,1753498243709,-460.0,0.00019726,2]
[375003107,1753498243718,-151.0,0.00019726,2]
[375003109,1753498243728,-269.6616425,0.00019726,2]
[375003111,1753498243738,-460.0,0.00019726,2]
[375003113,1753498243748,-533.2,0.00019726,2]
[375003115,1753498243757,-465.6017451,0.00019726,2]
[375003117,1753498243767,-460.0,0.00019726,2]
[375003119,1753498243776,-460.0,0.00019726,2]
[375003121,1753498243786,-460.0,0.00019726,2]
[375003123,1753498243795,-460.0,0.00019726,2]
[375003125,1753498243807,-460.0,0.00019726,2]
[375003127,1753498243818,-460.0,0.00019726,2]
[375003129,1753498243827,-460.0,0.00019726,2]
[375003131,1753498243837,-468.2955928,0.00019726,2]
[375003133,1753498243846,-460.0,0.00019726,2]
[375003135,1753498243855,-151.0,0.00019726,2]
[375003137,1753498243865,-460.0,0.00019726,2]
[375003139,1753498243875,-460.0,0.00019726,2]
[375003141,1753498243884,-467.65394349,0.00019726,2]
[375003143,1753498243894,-460.0,0.00019726,2]
[375003145,1753498243903,-460.0,0.00019726,2]
[375003147,1753498243912,-460.0,0.00019726,2]
[375003149,1753498243922,-460.0,0.00019726,2]
[375003151,1753498243931,-460.0,0.00019726,2]
[375003153,1753498243941,-460.0,0.00019726,2]
[375003155,1753498243951,-460.0,0.00019726,2]
[375003157,1753498243960,-383.53953217,0.00019726,2]
[375003159,1753498243969,-460.0,0.00019726,2]
[375003161,1753498243979,-460.0,0.00019726,2]
[375003163,1753498243988,-460.0,0.00019726,2]
[375003165,1753498243997,-460.0,0.00019726,2]
[375003167,1753498244007,-460.0,0.00019726,2]
[375003169,1753498244017,-460.0,0.00019726,2]
[375003171,1753498244026,-460.0,0.00019726,2]
[375003173,1753498244036,-460.0,0.00019726,2]
[375003175,1753498244045,-460.0,0.00019726,2]
[375003177,1753498244056,-460.0,0.00019726,2]
[375003179,1753498244066,-151.0,0.00019726,2]
[375003181,1753498244075,-460.0,0.00019726,2]
[375003183,1753498244085,-460.0,0.00019726,2]
[375003185,1753498244095,-460.0,0.00019726,2]
[375003187,1753498244105,-151.0,0.00019726,2]
[375003189,1753498244115,-151.0,0.00019726,2]
[375003191,1753498244124,-460.0,0.00019726,2]
[375003193,1753498244135,-1178.73,0.00019726,2]
[375003195,1753498244144,-460.0,0.00019726,2]
[375003197,1753498244154,-565.71,0.00019726,2]
[375003199,1753498244164,-460.0,0.00019726,2]
[375003201,1753498244173,-460.0,0.00019726,2]
[375003203,1753498244183,-2820.58,0.00019726,2]
[375003205,1753498244194,-2259.96,0.00019726,2]
[375003207,1753498244203,-460.0,0.00019726,2]
[375003209,1753498244212,-1229.32,0.00019726,2]
[375003211,1753498244222,-460.0,0.00019726,2]
[375003213,1753498244231,-460.0,0.00019726,2]
[375003215,1753498244241,-460.0,0.00019726,2]
[375003217,1753498244250,-460.0,0.00019726,2]
[375003219,1753498244260,-460.0,0.00019726,2]
[375003221,1753498244270,-460.0,0.00019726,2]
[375003223,1753498244279,-699.22,0.00019726,2]
[375003225,1753498244289,-468.18343484,0.00019726,2]
[375003227,1753498244298,-460.0,0.00019726,2]
[375003228,1753498244308,-618.62,0.00019726,2]
[375003230,1753498244318,-460.0,0.00019726,2]
[375003233,1753498244328,-465.31979679,0.00019726,2]
[375003235,1753498244338,-1475.59,0.00019726,2]
[375003247,1753498244444,-460.0,0.00019726,2]
[375003249,1753498244455,-1665.33,0.00019726,2]
[375003251,1753498244465,-460.0,0.00019726,2]
[375003253,1753498244474,-460.0,0.00019726,2]
[375003255,1753498244484,-460.0,0.00019726,2]
[375003257,1753498244494,-1016.28,0.00019726,2]
[375003259,1753498244504,-460.0,0.00019726,2]
[375003261,1753498244514,-485.56642169,0.00019726,2]
[375003263,1753498244524,-530.2,0.00019726,2]
[375003265,1753498244539,-568.99,0.00019726,2]
[375003267,1753498244548,-4433.73,0.00019726,2]
[375003269,1753498244559,-460.0,0.00019726,2]
[375003271,1753498244568,-460.0,0.00019726,2]
[375003273,1753498244578,-460.0,0.00019726,2]
[375003275,1753498244588,-460.0,0.00019726,2]
[375003277,1753498244597,-1794.08,0.00019726,2]
[375003279,1753498244608,-460.0,0.00019726,2]
[375003281,1753498244617,-460.0,0.00019726,2]